Cogmind - Beta 15 @@@ ROGUE MODE // 2025.05.25 @ 19:27:23 Player: LightKnight Result: Destroyed by as-10892 with Assembled Blade Performance ------------- Evolutions (0) 0 Regions Visited (2) 400 Robots Destroyed (28) 140 Value Destroyed (608) 608 Prototype IDs (6) 120 Alien Tech Used (0) 0 Bonus (35) 35 TOTAL SCORE: 1303 Bonus ------- Follower Combat Kills 35 Cogmind --------- Core Integrity 0/250 Matter 249/300 Energy 100/100 System Corruption 0% Temperature Cool (0) Movement Rolling (105) Ox1 Location -10/Mines Parts ------- > --- POWER (1) -------- (None) > --- PROPULSION (2) --- Armored Wheel Armored Wheel > --- UTILITY (2) ------ Large Storage Unit Targeting Computer > --- WEAPON (2) ------- Heavy Assault Rifle Heavy Assault Rifle > --- INVENTORY (15) --- Improved Heat Sink High-capacity Battery (250) Structural Scanner Seismic Detector Light Armor Plating Particle Gun Beam Cannon Heavy Assault Rifle Peak State ------------ > --- POWER ------------ Ion Engine > --- PROPULSION ------- Light Treads Light Treads > --- UTILITY ---------- Large Storage Unit Propulsion Shielding > --- WEAPON ----------- Heavy Assault Rifle Heavy Assault Rifle > --- INVENTORY -------- Ion Engine Light Nuclear Core Light Treads Aluminum Leg Aluminum Leg Wheel Compact Wheel Improved Heat Sink Transport Network Coupler Particle Gun Light Assault Rifle Heavy Assault Rifle Heavy Assault Rifle [Rating: 11] Favorites ----------- Power Ion Engine Engine Ion Engine Propulsion Light Treads Treads Light Treads Leg Aluminum Leg Wheel Armored Wheel Utility Large Storage Unit Storage Large Storage Unit Processor Targeting Computer Protection Propulsion Shielding Weapon Heavy Assault Rifle Energy Gun Particle Gun Ballistic Gun Heavy Assault Rifle Launcher Grenade Launcher Build | -11 -10 -10 ------- Run | Yrd Mat Min Slots Evolved . | . . . Power . | . . . Propulsion . | . . . Utility . | . . . Weapon . | . . . Parts Attached 19 | 1 10 8 Power 2 | . 1 1 Engine 2 | . 1 1 Core . | . . . Reactor . | . . . Propulsion 5 | . 2 3 Treads 3 | . 2 1 Leg . | . . . Wheel 2 | . . 2 Hover . | . . . Flight . | . . . Utility 5 | . 4 1 Device . | . . . Storage 2 | . 2 . Processor 2 | . 1 1 Hackware . | . . . Protection 1 | . 1 . Artifact . | . . . Weapon 7 | 1 3 3 Energy Gun 1 | . 1 . Energy Cannon . | . . . Ballistic Gun 5 | 1 2 2 Ballistic Cannon . | . . . Launcher 1 | . . 1 Special Weapon . | . . . Impact Weapon . | . . . Slashing Weapon . | . . . Piercing Weapon . | . . . Special Melee Weapon . | . . . Unidentified Prototypes . | . . . Parts Lost 9 | . . 9 Power 2 | . . 2 Propulsion 3 | . . 3 Utility 1 | . . 1 Weapon 3 | . . 3 Highest Loss Streak 8 | . . 8 To Critical Strikes . | . . . Average Backups 12 | 6 11 14 Power 1 | 1 1 . Propulsion 3 | 4 3 2 Utility 3 | . 2 4 Weapon 4 | 1 3 5 Tool/Special . | . . . Unused Backups 20 | . 14 6 Power 2 | . 2 . Propulsion 6 | . 6 . Utility 8 | . 3 5 Weapon 4 | . 3 1 Tool/Special . | . . . Average Slot Usage (%) 98 | . 98 98 Engine 13 | . 14 13 Treads 26 | . 26 26 Storage 14 | . 14 14 Processor 2 | . . 7 Protection 10 | . 12 6 Energy Gun 1 | . 2 . Ballistic Gun 24 | . 25 24 Peak Build Rating 11 | 6 11 11 Average Rating 10 | 6 9 10 On Entrance 7 | 6 6 11 Naked Turns . | . . . Heaviest Build 36 | 11 36 32 Greatest Support 40 | 20 40 40 Greatest Overweight (x) 2 | . 1 2 Average Overweight (x) . | . . . Largest Inventory Capacity 15 | 8 15 15 Average Capacity 14 | 8 14 15 Most Carried 15 | 6 15 15 Average Carried 12 | 6 11 14 Final Capacity 15 | 8 15 15 Final Carried 15 | 6 15 8 Class Distribution -------------------- 100% | Mutant Dominant Class ---------------- Mutant | -10/Materials Mutant | -10/Mines Resources | -11 -10 -10 ----------- Run | Yrd Mat Min Matter Collected 714 | 200 396 118 Remotely . | . . . Salvage Created 847 | . 623 224 Parts 55 | . 38 17 Haulers Intercepted 2 | . 2 . Recyclers Shooed 1 | . 1 . Parts Field Recycled . | . . . Retrieved Matter . | . . . Parts Self-Destructed . | . . . Prevented . | . . . Kills | -11 -10 -10 ------- Run | Yrd Mat Min Combat Hostiles Destroyed 23 | . 13 10 Guns 21 | . 13 8 AOE 2 | . . 2 Classes Destroyed 7 | . 5 2 Worker 1 | . 1 . Hauler 2 | . 2 . Mechanic 1 | . . 1 Watcher 2 | . 2 . Swarmer 9 | . 3 6 Grunt 13 | . 10 3 Assembled 1 | . . 1 Best Kill Streak 5 | . 5 3 Combat Bots Only 5 | . 5 3 Max Kills in Single Turn 3 | . 1 3 Gunslinging . | . . . Exploded 2 | . . 2 Melee . | . . . Uniques/NPCs Destroyed . | . . . Combat | -11 -10 -10 -------- Run | Yrd Mat Min Hostile Shots Fired 143 | . 39 104 Missed 42 | . 14 28 Hits 101 | . 25 76 Melee 10 | . . 10 Projectile 91 | . 25 66 AOE 6 | . . 6 Damage Taken 1525 | . 294 1231 Core 268 | . 69 199 Absorbed by Shields . | . . . Redirected to Shielding 50 | . 31 19 Regen/Repaired (Parts) 49 | . 49 . Core Remaining (%) 100 | 100 . . Volleys Fired 72 | . 54 18 Largest 2 | . 2 2 Hottest 85 | . 85 53 Shots Fired 141 | . 108 33 Gun 139 | . 108 31 Cannon . | . . . Launcher 2 | . . 2 Special . | . . . Kinetic 137 | . 106 31 Thermal 2 | . 2 . Explosive 2 | . . 2 Electromagnetic . | . . . Robot Hit Streak 14 | . 14 6 Robot Miss Streak 6 | . 6 2 Penetration Max . | . . . Secondary Targets 2 | . 1 1 Max Gunslinging Chain 1 | . 1 1 Shots Hit Robots 86 | . 63 23 Core Hits 40 | . 27 13 Critical Kills . | . . . Critical Parts Destroyed . | . . . Critical Strikes . | . . . Melee Attacks . | . . . Impact . | . . . Slashing . | . . . Piercing . | . . . Sneak Attacks . | . . . Combat Hostiles . | . . . Follow-up Attacks . | . . . Damage Inflicted 1507 | . 934 573 Guns 1275 | . 934 341 Cannons . | . . . Explosions 222 | . . 222 Melee . | . . . Ramming 10 | . . 10 Kinetic 1258 | . 917 341 Thermal 17 | . 17 . Explosive 222 | . . 222 Electromagnetic . | . . . Impact . | . . . Slashing . | . . . Piercing . | . . . Highest Corruption . | . . . Average Corruption . | . . . Corruption Purged . | . . . Corruption Blocked . | . . . Overload Shots . | . . . Overflow Damage . | . . . Projectiles . | . . . Explosions . | . . . Melee . | . . . Knockbacks . | . . . Impact . | . . . Kinetic . | . . . Secondary . | . . . Self-Inflicted Damage . | . . . Shots . | . . . Rammed 1 | . . 1 Targets Rammed 1 | . . 1 Kicked . | . . . Crushed . | . . . Highest Temperature 24 | . 24 2 Average Temperature 7 | . 7 2 Received Heat Transfer 230 | . 150 80 Siege Activations . | . . . Martial Activations . | . . . Shielding Activations . | . . . Robots Disrupted . | . . . Combat Hostiles . | . . . Robots Corrupted . | . . . Combat Hostiles . | . . . Parts Fried . | . . . Impact Corruptions . | . . . Robots Melted . | . . . Combat Hostiles . | . . . Parts Melted . | . . . Heat Transferred 37 | . 37 . Parts Sabotaged . | . . . Parts Stolen . | . . . Parts Stripped . | . . . Power Chain Reactions . | . . . Alert | -11 -10 -10 ------- Run | Yrd Mat Min Maximum Alert Level . | . . . Low Security (%) 100 | 100 100 100 Level 1 . | . . . Level 2 . | . . . Level 3 . | . . . Level 4 . | . . . Level 5 . | . . . High Security . | . . . Max Security . | . . . Peak Influence 179 | . 179 109 Initial 31 | . . 31 Average 78 | . 100 38 Influence Increases 790 | . 534 256 Destroy 0b10 Robot/C 460 | . 260 200 Destroy 0b10 Robot/NC 30 | . 25 5 Destroy Leader 98 | . 68 30 Allied During Kill 5 | . . 5 Successful Hack 37 | . 31 6 Select Force Hacks 60 | . 60 . Destroy Structure 10 | . . 10 Lose Combat Pursuer 90 | . 90 . Influence Decreases 790 | . 452 338 Entered New Map 51 | . . 51 Time Decay 671 | . 452 219 Lost Part 48 | . . 48 Lost Ally 20 | . . 20 Squads Dispatched 4 | . 3 1 Investigation 2 | . 2 . Extermination . | . . . Reinforcement 1 | . 1 . Assault 1 | . . 1 Garrison . | . . . Intercept . | . . . Searches Triggered . | . . . Construction Impeded . | . . . Haulers Reinforced . | . . . Active Scanning Responses . | . . . Cargo Convoy Interrupts . | . . . Stealth | -11 -10 -10 --------- Run | Yrd Mat Min Distress Signals 3 | . 3 . Communications Jammed . | . . . Distress Signals . | . . . Times Spotted 52 | . 20 32 Peak Tracking Total 18 | . 3 18 Tactical Retreats 6 | . 3 3 Traps | -11 -10 -10 ------- Run | Yrd Mat Min Traps Triggered . | . . . Indirectly . | . . . Trap Hack Attempts . | . . . Triggered . | . . . Disarmed . | . . . Reprogrammed . | . . . Reused . | . . . Traps Extracted . | . . . Installed . | . . . Triggered . | . . . Machines | -11 -10 -10 ---------- Run | Yrd Mat Min Machines Disabled . | . . . Max in Single Turn . | . . . Machines Repaired . | . . . Machines Dismantled . | . . . Machines Sabotaged . | . . . Overloaded Fab Kills . | . . . Hacking | -11 -10 -10 --------- Run | Yrd Mat Min Machines Accessed 11 | . 10 1 Terminals 8 | . 7 1 Fabricators . | . . . Repair Stations 1 | . 1 . Recycling Units 2 | . 2 . Scanalyzers . | . . . Garrison Access . | . . . Total Hacks 31 | . 29 2 Successful 16 | . 15 1 Failed 13 | . 13 . Catastrophic 1 | . 1 . Database Lockouts 2 | . 1 1 Manual 19 | . 15 4 Terminals 25 | . 23 2 Fabricators . | . . . Repair Stations 3 | . 3 . Recycling Units 3 | . 3 . Scanalyzers . | . . . Garrison Access . | . . . Terminal Hacks 10 | . 9 1 Robot Analysis 2 | . 2 . Prototype ID Bank 4 | . 3 1 Branch Access Points 1 | . 1 . Locate Traps 3 | . 3 . Fabricator Hacks . | . . . Repair Station Hacks 2 | . 2 . Scan Component 1 | . 1 . Repair 1 | . 1 . Recycling Unit Hacks . | . . . Scanalyzer . | . . . Garrison Access Hacks . | . . . Unauthorized Hacks 4 | . 4 . Terminals 2 | . 2 . Botnet 2 | . 2 . Fabricators . | . . . Repair Stations . | . . . Recycling Units 2 | . 2 . Tunnel 2 | . 2 . Scanalyzers . | . . . Garrison Access . | . . . Data Cores Recovered . | . . . Used . | . . . Hacking Detections 7 | . 7 . Full Trace Events . | . . . Feedback Events . | . . . Feedback Blocked . | . . . Robot Schematics Acquired . | . . . Robots Built . | . . . Authchips . | . . . Time . | . . . Total Robot Build Rating . | . . . Part Schematics Acquired . | . . . Parts Built . | . . . Authchips . | . . . Time . | . . . Total Part Build Rating . | . . . Parts Repaired 1 | . 1 . Time 26 | . 26 . Parts Recycled . | . . . Recycled Matter . | . . . Retrieved Matter . | . . . Retrieved Components . | . . . Parts Scanalyzed . | . . . Part Schematics Acquired . | . . . Parts Damaged . | . . . Bothacking | -11 -10 -10 ------------ Run | Yrd Mat Min Used RIF Installer . | . . . Robots Hacked . | . . . Non-combat . | . . . Combat . | . . . Robot Hacks Applied . | . . . Relay Couplers Released . | . . . Fabnet Peak Effective % . | . . . Robots Rewired . | . . . Allies Hacked . | . . . Hacks Repelled . | . . . Allies | -11 -10 -10 -------- Run | Yrd Mat Min Total Allies 1 | . . 1 Largest Group 1 | . . 1 Highest-Rated Group 31 | . . 31 Highest-Rated Ally 31 | . . 31 Total Orders . | . . . Ally Attacks 8 | . . 8 Total Damage 148 | . . 148 Kills 1 | . . 1 Allies Corrupted . | . . . Allies Melted . | . . . Intel | -11 -10 -10 ------- Run | Yrd Mat Min Active Infowar (turns) 32 | . 32 . Optics 32 | . 32 . Robot Analysis Total 2 | . 2 . Derelict Logs Recovered 1 | . . 1 Drone Launches . | . . . Drone Recoveries . | . . . Exploration | -11 -10 -10 ------------- Run | Yrd Mat Min Turns Passed 1912 | 2 1262 648 Spaces Moved 1018 | 1 648 369 Core . | . . . Treads 980 | . 628 352 Legs 21 | 1 20 . Wheels 17 | . . 17 Hover . | . . . Flight . | . . . Fastest Speed 105 | 120 120 105 Average Speed 158 | 120 158 158 Slowest Speed 240 | 120 190 240 Overloaded Moves . | . . . Propulsion Burnouts . | . . . Robots Hopped . | . . . Potential Cave-ins 1 | . . 1 Cave-ins Triggered . | . . . Exploration Rate (%) 59 | 2 95 81 Regions Visited 2 Branch Regions 1 Pre-discovered Areas 3 | . 2 1 Known Exits Taken 1 | . 1 . Unknown Exits Taken 1 | 1 . . Scrap Searched 2 | . . 2 Spaces Dug . | . . . Terrain Destroyed 11 | . . 11 Melee . | . . . Projectile . | . . . AOE 11 | . . 11 Terrain Rammed . | . . . Walls Destroyed . | . . . Machines Disabled . | . . . Actions | -11 -10 -10 --------- Run | Yrd Mat Min Total 1181 | 1 782 398 Wait 34 | . 34 . Move 1016 | . 647 369 Hop . | . . . Pick Up 17 | . 16 1 Fast Attach 7 | . 7 . Attach 10 | . 2 8 Detach 7 | . 7 . Swap 4 | 1 2 1 Drop 13 | . 13 . Fire 72 | . 54 18 Melee . | . . . Ram . | . . . Kick . | . . . Crush 1 | . . 1 Escape Stasis . | . . . Rewire . | . . . Trap . | . . . Miscellaneous . | . . . Route ------- -11/Scrapyard -10/Materials (discovered 5 exits: [*Mat x3] / *Min x2) -10/Mines (discovered 3 exits: [*Mat x2] / [*Sub]) History --------- Turn | Location | Event 3 | -11/Scrapyard | Discovered new exit (range 0) 3 | -11/Scrapyard | Entered Materials 11 | -10/Materials | Identified exit to Mines 273 | -10/Materials | Repaired Lgt. Treads 313 | -10/Materials | Build established: Mutant 386 | -10/Materials | Discovered new exit (range 3) 857 | -10/Materials | Discovered new exit (range 14) 1160 | -10/Materials | Central database locked down 1216 | -10/Materials | Discovered new exit (range 9) 1265 | -10/Materials | Entered Mines 1297 | -10/Mines | Discovered new exit (range 12) 1498 | -10/Mines | Central database locked down 1586 | -10/Mines | Discovered new exit (range 8) 1669 | -10/Mines | Discovered new exit (range 6) 1670 | -10/Mines | Met a Derelict testing a Signal Generator 1836 | -10/Mines | Assembled infested the area 1848 | -10/Mines | Learned location of Storage (-7) 1865 | -10/Mines | Core integrity fell below 50% 1886 | -10/Mines | Core integrity fell below 20% 1913 | -10/Mines | Destroyed by as-10892 with Assembled Blade Last Messages --------------- 01872_ D-53 Grenadier destroyed. 01873_ U-05 Engineer builds a Wall. 01874_ D-53 Grenadier destroyed. 01875_ The unstable cave ceiling collapses. 01875_ Lgt. Treads destroyed. 01876_ Hvy. Assault Rifle destroyed. 01877_ The unstable cave ceiling collapses. 01877_ U-05 Engineer lays Concrete. 01882_ U-05 Engineer builds a Wall. 01885_ Acquired 14 matter. 01886_ U-05 Engineer lays Concrete. 01888_ U-05 Engineer destroyed. 01889_ U-05 Engineer lays Concrete. 01890_ U-05 Engineer destroyed. 01894_ The unstable cave ceiling collapses. 01897_ Lgt. Assault Rifle destroyed. 01902_ as-02980 destroyed. 01902_ Switching to secondary target: as-10892. 01902_ Lgt. Treads destroyed. 01905_ Ion Engine destroyed. Map ----- +----------------------------------------------------+ | ??????????????????????????????# ## | | ???????????????????????????????# | | ??????????????????????????????????# | | ??????????????????????????????????## ## | | ???????????????????????????????????##???## | | ??????????????????????????????????????### | | ??????????????????????????????????????# ## | | ??????????????????????????????????##### %* #### | | ?????????????????????????????###### !% % ##?? | | ?????????????????????????????# = ## %% ##? | | ??? ????????????????????????# % ## #? | | ??? ???????????????????????# ####### #? | | ???? ?????????????????????### #####?#### ##? | | ???? ?????????????????# ### #???## ##?? | | ????? ####????###??????# #????# ##??? | | ????? ##??? ##????# ### #???## #???? | | ?????# ##? ????????# #??## ##???? | | ?????# #?? ????????# """ #??# ##????? | | ?????# % ???? ##??????# """ #??# ##????? | | ?????# ????? ##?????# """ #??# ##???? | | ????## ##????? ##????###### ###?## #???? | | ???## #?????? ##??####### #??## #???? | | ???# ##?????# !% #??# r #??# ##???? | | ???# #????## | #### ## ## #??# ##????? | | ???# # % ##???# ## ## ## #??## ##???### | | ???# #?### #@#### ## #???## #????# | | #??# ### ##a#??# ## #????# ####### # | | ##?# # ## a%#??# ## #????# # | | ### ### %= ##??# ## #????# ######### | | ## = ! ####???# ## #????# #???????? | | %%! #????### # ###### #???????? | | ## #%### #???## #???????? | | #######"#### #???# #???????? | | # ##????## #??# ##??# #########???????? | | ### ##????## ##?## ##?## ##?????????????? | | ??# ####### #### #??##### #?????????????? | | ??# #??????## ##????????????? | | ??# #???????# ##???????????? | | ??## #### ##### ##???????# ##??????????? | | ???# #??## #???# #???????## #??????????? | | ???# #???# #???# #???##### #??????????? | | ???# #??## ##???# #??## ] #??????????? | | ???# #### ##?#### #?## ##?????????? | | ???# ##??# ### ## #?????????? | | ???##### ##???# ###### #### #?????????? | | ??????## ##????# #????# ##??## %%##?????????? | | ?????## #????## #???## ##????## #?????????## | | ?????# ##??## ##### ##??????# #??########T | | ????## ##?# ## ##???????# #### | | ????# #?# ##????????# """ | +----------------------------------------------------+ Best States ------------- Heat Dissipation 25 Energy Generation 10 Energy Capacity 250 Matter Stores 300 Matter Capacity 300 Sight Range 18 Terrain Scan Density 10 Propulsion Shielding 33 Evasion (%) 55 Targeting Accuracy 5 Recoil Reduction 2 Item Schematics ----------------- None Robot Schematics ------------------ None Fabricated ------------ Nothing Repaired ---------- Lgt. Treads | 65% | -10/Materials Alien Tech Used ----------------- None Achievements -------------- None Challenges ------------ None Game ------ Seed CannonRagnarokDevice Manual? 0 Play Time 00:17:12 Cumulative 295.7 hours Start 2025.05.25 @ 17:34:32 End 2025.05.25 @ 19:27:23 Sessions 2 Manual Loads 0 Difficulty Rogue Special Mode None Game No. 207 Rogue 207 Adventurer 0 Explorer 0 Win Type - Total 23 Types 18/0/3/2/0/0/0/0/0/0 Lore% 85 Gallery% 72 Achievement% 64 Wizard Run 0 Options --------- Layout 0 ASCII 1 Keyboard 1 Movement Arrows Keybinds 0 Fullscreen 1 Font 18/SmallcapsGlow Map View 76x50 Zoom Use 0% Tactical HUD 1 Map Filters NONE Filters NONE Steam 1 RUN: 7e00bcc8-8d18-4eca-bcb2-3df470f2bc82